[Event "GER-ch Youth-U18w 2023"]
[Site "Willingen"]
[Date "2023.05.31"]
[Round "5.8"]
[White "Kieckbusch, Lotta"]
[Black "Glowiak, Alexandra"]
[Result "1-0"]
[Annotator "NA RC"]
[ECO "C56"]
[WhiteElo "1308"]
[BlackElo "1660"]
[PlyCount "63"]
[EventDate "2022.06.05"]
[EventType "swiss"]
[EventRounds "9"]
[EventCountry "GER"]
[SourceTitle "playchess.com"]
[Source "ChessBase"]
[SourceQuality "1"]
[TimeControl "40/4500+30:900+30"]

1. e4 {[%emt 0:00:00]} e5 {[%emt 0:00:00]} 2. Nf3 {[%emt 0:00:00]} Nc6 {[%emt 0:00:00]} 3. d4 {[%emt 0:00:00]} exd4 {[%emt 0:00:00]} 4. Bc4 {[%emt 0:00:00]} Nf6 {[%emt 0:00:00]} 5. e5 {[%emt 0:00:00]} d5 {[%emt 0:00:00]} 6. Bb5 {[%emt 0:00:00]} Ne4 {[%emt 0:00:00]} 7. Nxd4 {[%emt 0:00:00]} Bd7 {[%emt 0:00:00]} 8. Bxc6 {[%emt 0:00:00]} bxc6 {[%emt 0:00:00]} 9. O-O {[%emt 0:00:00]} Bc5 {[%emt 0:00:00]} 10. f3 {[%emt 0:00:00]} Ng5 {[%emt 0:00:00]} 11. f4 {[%emt 0:00:00]} Ne4 {[%emt 0:00:00]} 12. Be3 {[%emt 0:00:00]} Bb6 {[%emt 0:00:00]} 13. Nd2 {[%emt 0:00:00]} Nxd2 {[%emt 0:00:00]} 14. Qxd2 {[%emt 0:00:00]} c5 {[%emt 0:00:00]} 15. Nf3 {[%emt 0:00:00]} d4 {[%emt 0:00:00]} 16. Bf2 {[%emt 0:00:00]} Bc6 {[%emt 0:00:00]} 17. Rae1 {[%emt 0:00:00]} Bxf3 {[%emt 0:51:01]} 18. gxf3 {[%emt 0:00:00]} Qd5 {[%emt 0:01:50]} 19. Bh4 {[%emt 0:01:28]} Kd7 {[%emt 0:02:25]} 20. a4 {[%emt 0:12:01]} a5 {[%emt 0:02:59]} 21. Qd3 {[%emt 0:05:46]} c4 {[%emt 0:01:35]} 22. Qf5+ {[%emt 0:08:20]} Kc6 {[%emt 0:04:33]} 23. Kh1 {[%emt 0:04:55]} Rab8 {[%emt 0:02:43]} 24. b3 {[%emt 0:05:32]} cxb3 {[%emt 0:02:16]} 25. cxb3 {[%emt 0:01:02]} Qxb3 {[%emt 0:00:19]} 26. Qe4+ {[%emt 0:01:05]} Kd7 {[%emt 0:06:42]} 27. Rc1 {[%emt 0:11:24]} c5 {[%emt 0:01:51]} 28. f5 {[%emt 0:03:56]} f6 {[%emt 0:09:02]} 29. e6+ {[%emt 0:01:43]} Ke7 {[%emt 0:00:52]} 30. Qc6 {[%emt 0:01:04]} Rhd8 {[%emt 0:00:05]} 31. Bg3 {[%emt 0:00:54]} Ba7 {[%emt 0:01:58]} 32. Qc7+ {[%emt 0:00:30]} 1-0

[Event "GER-ch Youth-U18w 2023"]
[Site "Willingen"]
[Date "2023.05.31"]
[Round "5.9"]
[White "Henninger, Claire"]
[Black "Werner, Rosalie"]
[Result "0-1"]
[Annotator "NA RC"]
[ECO "C01"]
[WhiteElo "1610"]
[BlackElo "1751"]
[PlyCount "152"]
[EventDate "2022.06.05"]
[EventType "swiss"]
[EventRounds "9"]
[EventCountry "GER"]
[SourceTitle "playchess.com"]
[Source "ChessBase"]
[SourceQuality "1"]
[TimeControl "40/4500+30:900+30"]

1. e4 {[%emt 0:00:00]} e6 {[%emt 0:00:00]} 2. d4 {[%emt 0:00:00]} d5 {[%emt 0:00:00]} 3. exd5 {[%emt 0:00:00]} exd5 {[%emt 0:00:00]} 4. Bd3 {[%emt 0:00:00]} Bd6 {[%emt 0:00:00]} 5. Nf3 {[%emt 0:00:00]} Ne7 {[%emt 0:00:00]} 6. O-O {[%emt 0:00:00]} Nbc6 {[%emt 0:00:00]} 7. c3 {[%emt 0:00:00]} Bg4 {[%emt 0:00:00]} 8. h3 {[%emt 0:00:00]} Bf5 {[%emt 0:00:00]} 9. Re1 {[%emt 0:00:00]} O-O {[%emt 0:00:00]} 10. b3 {[%emt 0:12:48]} Bxd3 {[%emt 0:16:26]} 11. Qxd3 {[%emt 0:00:10]} Ng6 {[%emt 0:05:55]} 12. Be3 {[%emt 0:10:49]} Nce7 {[%emt 0:02:35]} 13. Nbd2 {[%emt 0:04:27]} Qd7 {[%emt 0:02:42]} 14. Nf1 {[%emt 0:09:59]} Nf5 {[%emt 0:07:41]} 15. Bd2 {[%emt 0:00:37]} f6 {[%emt 0:06:16]} 16. c4 {[%emt 0:06:31]} Bf4 {[%emt 0:02:44]} 17. Ne3 {[%emt 0:02:25]} Bxe3 {[%emt 0:06:25]} 18. Bxe3 {[%emt 0:01:30]} c6 {[%emt 0:05:01]} 19. Rad1 {[%emt 0:04:56]} Nge7 {[%emt 0:04:45]} 20. Bf4 {[%emt 0:03:21]} g5 {[%emt 0:06:28]} 21. Bh2 {[%emt 0:04:47]} Ng6 {[%emt 0:02:20]} 22. c5 {[%emt 0:03:22]} Kg7 {[%emt 0:04:49]} 23. Nd2 {[%emt 0:07:14]} h5 {[%emt 0:03:53]} 24. Nf1 {[%emt 0:00:53]} Rh8 {[%emt 0:05:17]} 25. Re2 {[%emt 0:05:57]} h4 {[%emt 0:02:39]} 26. f3 {[%emt 0:02:44]} Kf7 {[%emt 0:01:13]} 27. Rde1 {[%emt 0:00:50]} Ng7 {[%emt 0:00:31]} 28. Ne3 {[%emt 0:00:47]} Rae8 {[%emt 0:00:33]} 29. Ng4 {[%emt 0:00:36]} Nh5 {[%emt 0:01:05]} 30. Qd2 {[%emt 0:02:54]} Nhf4 {[%emt 0:00:25]} 31. Re3 {[%emt 0:00:48]} Rxe3 {[%emt 0:00:41]} 32. Qxe3 {[%emt 0:00:54]} Qc7 {[%emt 0:00:33]} 33. Nf2 {[%emt 0:00:54]} Qd7 {[%emt 0:00:15]} 34. Ng4 {[%emt 0:00:36]} b6 {[%emt 0:00:41]} 35. b4 {[%emt 0:00:09]} b5 {[%emt 0:00:23]} 36. a3 {[%emt 0:00:11]} a6 {[%emt 0:00:34]} 37. Kf2 {[%emt 0:00:59]} Qc7 {[%emt 0:00:32]} 38. Kf1 {[%emt 0:00:35]} Qd7 {[%emt 0:00:20]} 39. Nf2 {[%emt 0:00:40]} Re8 {[%emt 0:00:23]} 40. Qxe8+ {[%emt 0:01:24]} Qxe8 {[%emt 0:00:05]} 41. Rxe8 {[%emt 0:15:04]} Kxe8 {[%emt 0:15:07]} 42. Ng4 {[%emt 0:00:00]} Ke7 {[%emt 0:00:00]} 43. Ne3 {[%emt 0:00:00]} Ke6 {[%emt 0:00:00]} 44. Nc2 {[%emt 0:00:00]} Nd3 {[%emt 0:00:00]} 45. Bc7 {[%emt 0:00:00]} Nb2 {[%emt 0:00:00]} 46. Ke2 {[%emt 0:00:00]} Nc4 {[%emt 0:00:00]} 47. Kd3 {[%emt 0:00:00]} f5 {[%emt 0:00:00]} 48. Bh2 {[%emt 0:00:00]} f4 {[%emt 0:00:37]} 49. Bg1 {[%emt 0:00:00]} Ne7 {[%emt 0:00:50]} 50. Bf2 {[%emt 0:00:00]} Nf5 {[%emt 0:01:44]} 51. Bg1 {[%emt 0:00:00]} Ng3 {[%emt 0:00:19]} 52. Bf2 {[%emt 0:00:00]} Nf1 {[%emt 0:00:17]} 53. Kc3 {[%emt 0:01:33]} Kf5 {[%emt 0:01:21]} 54. Ne1 {[%emt 0:01:59]} Nxa3 {[%emt 0:00:36]} 55. Nd3 {[%emt 0:01:10]} Nc4 {[%emt 0:00:34]} 56. Ne1 {[%emt 0:00:43]} Ke6 {[%emt 0:01:30]} 57. Nd3 {[%emt 0:01:08]} Nfe3 {[%emt 0:00:36]} 58. Ne1 {[%emt 0:00:33]} Nd1+ {[%emt 0:00:05]} 59. Kd3 {[%emt 0:00:59]} Nxf2+ {[%emt 0:00:07]} 60. Ke2 {[%emt 0:00:05]} Nh1 {[%emt 0:00:09]} 61. Kd3 {[%emt 0:00:25]} Ng3 {[%emt 0:00:14]} 62. Kc3 {[%emt 0:00:22]} Nf5 {[%emt 0:00:29]} 63. Kd3 {[%emt 0:00:15]} Nfe3 {[%emt 0:00:18]} 64. Kc3 {[%emt 0:00:13]} Kd7 {[%emt 0:01:05]} 65. Kd3 {[%emt 0:00:21]} Kc7 {[%emt 0:00:18]} 66. Kc3 {[%emt 0:01:33]} Kb7 {[%emt 0:00:06]} 67. Kb3 {[%emt 0:00:35]} a5 {[%emt 0:00:29]} 68. Nd3 {[%emt 0:00:55]} Nxg2 {[%emt 0:00:29]} 69. Ne5 {[%emt 0:00:13]} Nxe5 {[%emt 0:00:50]} 70. dxe5 {[%emt 0:00:04]} a4+ {[%emt 0:00:10]} 71. Kc3 {[%emt 0:00:14]} Ne3 {[%emt 0:00:19]} 72. e6 {[%emt 0:00:05]} Nf5 {[%emt 0:00:07]} 73. Kd3 {[%emt 0:00:29]} Kc7 {[%emt 0:00:16]} 74. Kd2 {[%emt 0:00:18]} a3 {[%emt 0:00:18]} 75. Kc3 {[%emt 0:00:06]} d4+ {[%emt 0:00:17]} 76. Kb3 {[%emt 0:00:19]} d3 {[%emt 0:00:11]} 0-1

[Event "GER-ch Youth-U18w 2023"]
[Site "Willingen"]
[Date "2023.05.31"]
[Round "5.10"]
[White "Petersen, Sophie"]
[Black "Avetyan, Manan"]
[Result "1-0"]
[Annotator "NA RC"]
[ECO "C78"]
[WhiteElo "1763"]
[BlackElo "1368"]
[PlyCount "27"]
[EventDate "2022.06.05"]
[EventType "swiss"]
[EventRounds "9"]
[EventCountry "GER"]
[SourceTitle "playchess.com"]
[Source "ChessBase"]
[SourceQuality "1"]
[TimeControl "40/4500+30:900+30"]

1. e4 {[%emt 0:00:00]} e5 {[%emt 0:00:00]} 2. Nf3 {[%emt 0:00:00]} Nc6 {[%emt 0:00:00]} 3. Bb5 {[%emt 0:00:00]} a6 {[%emt 0:00:00]} 4. Ba4 {[%emt 0:00:00]} Nf6 {[%emt 0:00:00]} 5. O-O {[%emt 0:00:00]} b5 {[%emt 0:00:00]} 6. Bb3 {[%emt 0:00:00]} Nxe4 {[%emt 0:00:00]} 7. d4 {[%emt 0:00:00]} exd4 {[%emt 0:00:41]} 8. Re1 {[%emt 0:00:00]} d5 {[%emt 0:00:25]} 9. Nxd4 {[%emt 0:00:00]} Bc5 {[%emt 0:13:58]} 10. Nxc6 {[%emt 0:05:06]} Bxf2+ {[%emt 0:05:41]} 11. Kh1 {[%emt 0:08:30]} Qh4 {[%emt 0:15:09]} 12. Qxd5 {[%emt 0:08:12]} Be6 {[%emt 0:19:49]} 13. Rxe4 {[%emt 0:01:38]} O-O {[%emt 0:05:22]} 14. Qe5 {[%emt 0:04:52]} 1-0

[Event "GER-ch Youth-U18w 2023"]
[Site "Willingen"]
[Date "2023.05.31"]
[Round "5.11"]
[White "Foltin, Alica"]
[Black "Dohon, Maria-Johanna"]
[Result "1-0"]
[Annotator "NA RC"]
[ECO "A63"]
[WhiteElo "1540"]
[BlackElo "1507"]
[PlyCount "111"]
[EventDate "2022.06.05"]
[EventType "swiss"]
[EventRounds "9"]
[EventCountry "GER"]
[SourceTitle "playchess.com"]
[Source "ChessBase"]
[SourceQuality "1"]
[TimeControl "40/4500+30:900+30"]

1. d4 {[%emt 0:00:00]} Nf6 {[%emt 0:00:00]} 2. c4 {[%emt 0:00:00]} g6 {[%emt 0:00:00]} 3. g3 {[%emt 0:00:00]} Bg7 {[%emt 0:00:00]} 4. Bg2 {[%emt 0:00:00]} O-O {[%emt 0:00:00]} 5. Nf3 {[%emt 0:00:00]} d6 {[%emt 0:00:00]} 6. O-O {[%emt 0:00:00]} c5 {[%emt 0:00:00]} 7. d5 {[%emt 0:00:00]} a6 {[%emt 0:00:00]} 8. a4 {[%emt 0:00:00]} e6 {[%emt 0:00:00]} 9. Nc3 {[%emt 0:00:00]} exd5 {[%emt 0:00:00]} 10. cxd5 {[%emt 0:00:00]} Nbd7 {[%emt 0:00:00]} 11. a5 {[%emt 0:00:00]} Qc7 {[%emt 0:00:00]} 12. e4 {[%emt 0:00:00]} Re8 {[%emt 0:00:00]} 13. Nd2 {[%emt 0:00:00]} Ne5 {[%emt 0:02:24]} 14. f4 {[%emt 0:00:00]} Nd3 {[%emt 0:07:49]} 15. Nc4 {[%emt 0:00:00]} Nxc1 {[%emt 0:03:46]} 16. Rxc1 {[%emt 0:00:00]} Nd7 {[%emt 0:09:26]} 17. Qc2 {[%emt 0:03:11]} b5 {[%emt 0:01:01]} 18. axb6 {[%emt 0:01:03]} Nxb6 {[%emt 0:00:09]} 19. Nxb6 {[%emt 0:06:21]} Qxb6 {[%emt 0:00:08]} 20. Na4 {[%emt 0:06:36]} Qb4 {[%emt 0:04:10]} 21. e5 {[%emt 0:19:50]} Bf5 {[%emt 0:10:53]} 22. Qd1 {[%emt 0:03:10]} Bd7 {[%emt 0:02:44]} 23. b3 {[%emt 0:04:10]} Bf8 {[%emt 0:05:44]} 24. Rc4 {[%emt 0:06:17]} Qa5 {[%emt 0:01:14]} 25. Re1 {[%emt 0:05:28]} Rab8 {[%emt 0:02:42]} 26. Rce4 {[%emt 0:11:08]} Bf5 {[%emt 0:06:59]} 27. R4e3 {[%emt 0:01:32]} Bd7 {[%emt 0:05:48]} 28. Nb2 {[%emt 0:04:44]} Bb5 {[%emt 0:02:39]} 29. g4 {[%emt 0:03:25]} dxe5 {[%emt 0:02:54]} 30. fxe5 {[%emt 0:01:38]} Bg7 {[%emt 0:01:11]} 31. Nc4 {[%emt 0:01:15]} Bxc4 {[%emt 0:00:45]} 32. bxc4 {[%emt 0:00:08]} Rbd8 {[%emt 0:03:20]} 33. d6 {[%emt 0:03:48]} Qb6 {[%emt 0:03:14]} 34. Rb3 {[%emt 0:01:21]} Qa5 {[%emt 0:01:55]} 35. Rbe3 {[%emt 0:01:38]} Qb6 {[%emt 0:00:09]} 36. Bd5 {[%emt 0:00:37]} Rf8 {[%emt 0:04:07]} 37. Rf3 {[%emt 0:00:39]} Bxe5 {[%emt 0:04:12]} 38. Rxe5 {[%emt 0:00:19]} Rxd6 {[%emt 0:01:33]} 39. Qa4 {[%emt 0:02:01]} Qb1+ {[%emt 0:01:42]} 40. Rf1 {[%emt 0:00:32]} Qd3 {[%emt 0:01:36]} 41. Qd1 {[%emt 0:19:34]} Qxd1 {[%emt 0:00:00]} 42. Rxd1 {[%emt 0:00:00]} Rdd8 {[%emt 0:00:00]} 43. Ra1 {[%emt 0:00:00]} Rd6 {[%emt 0:00:00]} 44. Re7 {[%emt 0:00:00]} Rf6 {[%emt 0:00:00]} 45. g5 {[%emt 0:00:00]} Rf4 {[%emt 0:00:00]} 46. Re4 {[%emt 0:00:00]} Rxe4 {[%emt 0:00:00]} 47. Bxe4 {[%emt 0:00:00]} Re8 {[%emt 0:00:00]} 48. Bd5 {[%emt 0:00:00]} Re5 {[%emt 0:00:00]} 49. h4 {[%emt 0:00:00]} Rf5 {[%emt 0:00:00]} 50. Kg2 {[%emt 0:00:00]} Rf4 {[%emt 0:00:00]} 51. Kg3 {[%emt 0:00:00]} Rf5 {[%emt 0:00:00]} 52. Rxa6 {[%emt 0:00:00]} Kf8 {[%emt 0:00:00]} 53. Rf6 {[%emt 0:00:00]} Rxf6 {[%emt 0:00:00]} 54. gxf6 {[%emt 0:00:00]} h6 {[%emt 0:00:07]} 55. Kf4 {[%emt 0:00:00]} Ke8 {[%emt 0:00:36]} 56. Ke5 {[%emt 0:00:00]} 1-0

[Event "GER-ch Youth-U18w 2023"]
[Site "Willingen"]
[Date "2023.05.31"]
[Round "5.12"]
[White "Evering, Enna"]
[Black "Gossing, Marie-Sophie"]
[Result "1/2-1/2"]
[Annotator "NA RC"]
[ECO "C29"]
[WhiteElo "1548"]
[BlackElo "1395"]
[PlyCount "88"]
[EventDate "2022.06.05"]
[EventType "swiss"]
[EventRounds "9"]
[EventCountry "GER"]
[SourceTitle "playchess.com"]
[Source "ChessBase"]
[SourceQuality "1"]
[TimeControl "40/4500+30:900+30"]

1. e4 {[%emt 0:00:00]} e5 {[%emt 0:00:00]} 2. Nc3 {[%emt 0:00:00]} Nf6 {[%emt 0:00:00]} 3. f4 {[%emt 0:00:00]} d5 {[%emt 0:00:00]} 4. fxe5 {[%emt 0:00:00]} Nxe4 {[%emt 0:00:00]} 5. Qf3 {[%emt 0:00:00]} Nxc3 {[%emt 0:00:00]} 6. bxc3 {[%emt 0:00:00]} Be6 {[%emt 0:00:52]} 7. d4 {[%emt 0:00:00]} Be7 {[%emt 0:08:03]} 8. Bd3 {[%emt 0:00:00]} c5 {[%emt 0:03:26]} 9. Ne2 {[%emt 0:07:18]} Qd7 {[%emt 0:10:37]} 10. O-O {[%emt 0:11:02]} Nc6 {[%emt 0:00:43]} 11. Be3 {[%emt 0:05:09]} O-O-O {[%emt 0:05:56]} 12. Bb5 {[%emt 0:08:51]} c4 {[%emt 0:01:17]} 13. Nf4 {[%emt 0:04:17]} Bg4 {[%emt 0:11:16]} 14. Bxc6 {[%emt 0:02:09]} bxc6 {[%emt 0:00:42]} 15. Qg3 {[%emt 0:03:55]} Rhg8 {[%emt 0:10:01]} 16. Rab1 {[%emt 0:04:41]} Bf5 {[%emt 0:05:56]} 17. Nh5 {[%emt 0:16:54]} Be6 {[%emt 0:06:45]} 18. Bg5 {[%emt 0:02:05]} Rdf8 {[%emt 0:09:08]} 19. Bxe7 {[%emt 0:00:55]} Qxe7 {[%emt 0:00:08]} 20. Rb4 {[%emt 0:02:00]} Qc7 {[%emt 0:04:29]} 21. Rfb1 {[%emt 0:01:18]} Bf5 {[%emt 0:02:02]} 22. R4b2 {[%emt 0:01:52]} a5 {[%emt 0:02:20]} 23. Qg5 {[%emt 0:00:49]} Be6 {[%emt 0:00:41]} 24. Qe7 {[%emt 0:01:24]} Re8 {[%emt 0:01:38]} 25. Qxc7+ {[%emt 0:01:41]} Kxc7 {[%emt 0:00:07]} 26. Rb7+ {[%emt 0:00:08]} Kd8 {[%emt 0:00:21]} 27. Rb8+ {[%emt 0:00:38]} Ke7 {[%emt 0:00:20]} 28. R1b7+ {[%emt 0:00:24]} Bd7 {[%emt 0:00:18]} 29. Rxe8+ {[%emt 0:00:33]} Rxe8 {[%emt 0:00:19]} 30. Ra7 {[%emt 0:01:52]} Rb8 {[%emt 0:00:51]} 31. Nxg7 {[%emt 0:02:29]} Kf8 {[%emt 0:01:01]} 32. Nh5 {[%emt 0:01:10]} Bg4 {[%emt 0:00:41]} 33. Nf6 {[%emt 0:00:30]} Rb1+ {[%emt 0:00:07]} 34. Kf2 {[%emt 0:00:04]} Be6 {[%emt 0:00:59]} 35. Nxh7+ {[%emt 0:01:46]} Kg7 {[%emt 0:00:37]} 36. Ng5 {[%emt 0:00:23]} Kg6 {[%emt 0:00:25]} 37. Nxe6 {[%emt 0:00:30]} fxe6 {[%emt 0:00:03]} 38. Rxa5 {[%emt 0:00:40]} Rb2 {[%emt 0:00:17]} 39. Kf3 {[%emt 0:01:45]} Rxc2 {[%emt 0:00:12]} 40. Ra3 {[%emt 0:01:16]} Kg5 {[%emt 0:00:51]} 41. Kg3 {[%emt 0:00:00]} Rd2 {[%emt 0:00:00]} 42. h4+ {[%emt 0:00:00]} Kh5 {[%emt 0:00:00]} 43. Kh3 {[%emt 0:00:00]} Rd3+ {[%emt 0:00:00]} 44. g3 {[%emt 0:01:40]} Re3 {[%emt 0:00:00]} 1/2-1/2

[Event "GER-ch Youth-U18w 2023"]
[Site "Willingen"]
[Date "2023.05.31"]
[Round "6.2"]
[White "Wagner, Margarethe"]
[Black "Groeschel, Karoline"]
[Result "1-0"]
[Annotator "NA RC"]
[ECO "B42"]
[WhiteElo "1831"]
[BlackElo "1892"]
[PlyCount "109"]
[EventDate "2022.06.05"]
[EventType "swiss"]
[EventRounds "9"]
[EventCountry "GER"]
[SourceTitle "playchess.com"]
[Source "ChessBase"]
[SourceQuality "1"]
[TimeControl "40/4500+30:900+30"]

1. e4 {[%emt 0:00:00]} c5 {[%emt 0:00:00]} 2. Nf3 {[%emt 0:00:00]} e6 {[%emt 0:00:00]} 3. d4 {[%emt 0:00:00]} cxd4 {[%emt 0:00:00]} 4. Nxd4 {[%emt 0:00:00]} Nf6 {[%emt 0:00:00]} 5. Bd3 {[%emt 0:00:00]} d6 {[%emt 0:00:00]} 6. O-O {[%emt 0:00:00]} a6 {[%emt 0:00:00]} 7. c4 {[%emt 0:00:00]} Be7 {[%emt 0:00:00]} 8. Nc3 {[%emt 0:00:00]} Qc7 {[%emt 0:00:00]} 9. Qe2 {[%emt 0:00:00]} Nbd7 {[%emt 0:00:00]} 10. Bd2 {[%emt 0:06:56]} b6 {[%emt 0:00:00]} 11. b3 {[%emt 0:02:36]} Bb7 {[%emt 0:01:43]} 12. Rac1 {[%emt 0:05:08]} O-O {[%emt 0:08:02]} 13. Rfe1 {[%emt 0:02:01]} Rfe8 {[%emt 0:10:00]} 14. Kh1 {[%emt 0:08:44]} Nf8 {[%emt 0:13:28]} 15. Bb1 {[%emt 0:04:46]} Rac8 {[%emt 0:09:41]} 16. f3 {[%emt 0:07:11]} Qb8 {[%emt 0:03:02]} 17. Qf2 {[%emt 0:18:55]} Bd8 {[%emt 0:02:17]} 18. Nc2 {[%emt 0:04:59]} Bc7 {[%emt 0:02:55]} 19. f4 {[%emt 0:05:15]} N8d7 {[%emt 0:05:04]} 20. Ne3 {[%emt 0:05:05]} Nc5 {[%emt 0:01:40]} 21. Nf1 {[%emt 0:00:13]} Qa8 {[%emt 0:06:13]} 22. Ng3 {[%emt 0:00:06]} Rcd8 {[%emt 0:02:18]} 23. h3 {[%emt 0:02:17]} Qb8 {[%emt 0:06:15]} 24. Rcd1 {[%emt 0:00:33]} Bc6 {[%emt 0:00:30]} 25. Be3 {[%emt 0:01:56]} Qb7 {[%emt 0:01:58]} 26. Bd4 {[%emt 0:00:51]} e5 {[%emt 0:02:42]} 27. fxe5 {[%emt 0:01:33]} dxe5 {[%emt 0:00:06]} 28. Bxc5 {[%emt 0:01:52]} bxc5 {[%emt 0:00:25]} 29. Rxd8 {[%emt 0:01:00]} Bxd8 {[%emt 0:02:10]} 30. Nf5 {[%emt 0:01:43]} Qb6 {[%emt 0:04:05]} 31. Rd1 {[%emt 0:02:36]} Bc7 {[%emt 0:00:41]} 32. Qg3 {[%emt 0:00:48]} g6 {[%emt 0:01:45]} 33. Ne3 {[%emt 0:01:08]} Nh5 {[%emt 0:01:16]} 34. Qf2 {[%emt 0:00:05]} Nf4 {[%emt 0:00:29]} 35. Ned5 {[%emt 0:00:11]} Bxd5 {[%emt 0:00:58]} 36. exd5 {[%emt 0:01:01]} Bd6 {[%emt 0:01:09]} 37. Ne4 {[%emt 0:00:16]} f5 {[%emt 0:00:53]} 38. Nf6+ {[%emt 0:00:23]} Kf7 {[%emt 0:00:17]} 39. Nxe8 {[%emt 0:01:26]} Kxe8 {[%emt 0:00:04]} 40. Qh4 {[%emt 0:00:18]} Qc7 {[%emt 0:01:40]} 41. Qf6 {[%emt 0:00:00]} a5 {[%emt 0:00:00]} 42. g3 {[%emt 0:00:00]} Nh5 {[%emt 0:00:00]} 43. Qe6+ {[%emt 0:00:00]} Kf8 {[%emt 0:00:00]} 44. g4 {[%emt 0:00:00]} Ng3+ {[%emt 0:00:00]} 45. Kg2 {[%emt 0:00:00]} f4 {[%emt 0:00:00]} 46. h4 {[%emt 0:01:38]} Qe7 {[%emt 0:00:00]} 47. Qc8+ {[%emt 0:06:00]} Kg7 {[%emt 0:00:00]} 48. g5 {[%emt 0:00:22]} e4 {[%emt 0:00:00]} 49. Qe6 {[%emt 0:00:33]} Qxe6 {[%emt 0:02:05]} 50. dxe6 {[%emt 0:00:06]} Be5 {[%emt 0:00:04]} 51. Bxe4 {[%emt 0:04:58]} Nxe4 {[%emt 0:02:00]} 52. Re1 {[%emt 0:00:04]} f3+ {[%emt 0:00:04]} 53. Kxf3 {[%emt 0:00:06]} Bd6 {[%emt 0:06:10]} 54. Kxe4 {[%emt 0:00:26]} Kf8 {[%emt 0:00:08]} 55. Kd5 {[%emt 0:00:19]} 1-0

[Event "GER-ch Youth-U18w 2023"]
[Site "Willingen"]
[Date "2023.05.31"]
[Round "6.3"]
[White "Buchholz, Maja Patricia"]
[Black "Peglau, Mirjam"]
[Result "1-0"]
[Annotator "RC"]
[ECO "A34"]
[WhiteElo "1899"]
[BlackElo "1932"]
[PlyCount "93"]
[EventDate "2022.06.05"]
[EventType "swiss"]
[EventRounds "9"]
[EventCountry "GER"]
[SourceTitle "playchess.com"]
[Source "ChessBase"]
[SourceQuality "1"]
[TimeControl "40/4500+30:900+30"]

1. c4 {[%emt 0:00:00]} c5 {[%emt 0:00:00]} 2. g3 {[%emt 0:00:00]} Nf6 {[%emt 0:00:00]} 3. Bg2 {[%emt 0:00:00]} d5 {[%emt 0:00:00]} 4. cxd5 {[%emt 0:00:00]} Nxd5 {[%emt 0:00:00]} 5. Nc3 {[%emt 0:00:00]} Nc7 {[%emt 0:00:00]} 6. Nf3 {[%emt 0:00:00]} Nc6 {[%emt 0:00:00]} 7. a3 {[%emt 0:00:00]} f6 {[%emt 0:00:00]} 8. b4 {[%emt 0:08:20]} cxb4 {[%emt 0:00:00]} 9. axb4 {[%emt 0:00:04]} e5 {[%emt 0:00:00]} 10. Rb1 {[%emt 0:08:04]} Bf5 {[%emt 0:04:16]} 11. b5 {[%emt 0:00:41]} Bxb1 {[%emt 0:04:24]} 12. bxc6 {[%emt 0:00:08]} Bf5 {[%emt 0:02:22]} 13. cxb7 {[%emt 0:00:10]} Rb8 {[%emt 0:00:09]} 14. Nh4 {[%emt 0:01:34]} Bd7 {[%emt 0:01:04]} 15. Qc2 {[%emt 0:07:18]} Be7 {[%emt 0:02:37]} 16. Nf5 {[%emt 0:06:02]} O-O {[%emt 0:01:39]} 17. Qa2+ {[%emt 0:06:14]} Be6 {[%emt 0:03:33]} 18. Nxe7+ {[%emt 0:00:14]} Qxe7 {[%emt 0:00:02]} 19. Qxa7 {[%emt 0:00:13]} Qd7 {[%emt 0:03:26]} 20. Ba3 {[%emt 0:06:05]} Rfd8 {[%emt 0:12:53]} 21. O-O {[%emt 0:03:59]} Nd5 {[%emt 0:02:40]} 22. Rb1 {[%emt 0:01:51]} Nxc3 {[%emt 0:03:35]} 23. dxc3 {[%emt 0:00:04]} Bf5 {[%emt 0:14:36]} 24. Rc1 {[%emt 0:06:59]} e4 {[%emt 0:03:25]} 25. Rb1 {[%emt 0:01:43]} Kh8 {[%emt 0:04:14]} 26. h4 {[%emt 0:04:55]} e3 {[%emt 0:02:06]} 27. Rc1 {[%emt 0:03:32]} exf2+ {[%emt 0:00:09]} 28. Kxf2 {[%emt 0:01:03]} Bg4 {[%emt 0:01:50]} 29. c4 {[%emt 0:07:36]} Re8 {[%emt 0:04:08]} 30. e3 {[%emt 0:02:41]} h5 {[%emt 0:05:55]} 31. Kg1 {[%emt 0:04:18]} Qc7 {[%emt 0:05:40]} 32. Kh2 {[%emt 0:00:47]} g5 {[%emt 0:01:46]} 33. hxg5 {[%emt 0:00:21]} h4 {[%emt 0:00:10]} 34. Qd4 {[%emt 0:02:09]} Qxg3+ {[%emt 0:01:23]} 35. Kh1 {[%emt 0:00:03]} Re5 {[%emt 0:02:46]} 36. Qf4 {[%emt 0:00:30]} Qxe3 {[%emt 0:01:59]} 37. Qxe3 {[%emt 0:00:20]} Rxe3 {[%emt 0:00:01]} 38. Bb2 {[%emt 0:02:06]} h3 {[%emt 0:00:58]} 39. Bxf6+ {[%emt 0:00:19]} Kh7 {[%emt 0:00:12]} 40. Bd5 {[%emt 0:00:22]} Bf3+ {[%emt 0:00:25]} 41. Bxf3 {[%emt 0:16:46]} Rxf3 {[%emt 0:15:01]} 42. Rb1 {[%emt 0:00:19]} Rf5 {[%emt 0:00:00]} 43. Rb6 {[%emt 0:00:00]} Kg8 {[%emt 0:00:00]} 44. Bd4 {[%emt 0:00:00]} Rxg5 {[%emt 0:00:00]} 45. c5 {[%emt 0:00:00]} Rd5 {[%emt 0:01:39]} 46. c6 {[%emt 0:00:00]} Rxd4 {[%emt 0:00:42]} 47. c7 {[%emt 0:00:00]} 1-0

[Event "GER-ch Youth-U18w 2023"]
[Site "Willingen"]
[Date "2023.05.31"]
[Round "6.4"]
[White "Adelhardt, Lisa"]
[Black "Cordes, Jule"]
[Result "1/2-1/2"]
[Annotator "NA RC"]
[ECO "C02"]
[WhiteElo "1656"]
[BlackElo "1744"]
[PlyCount "61"]
[EventDate "2022.06.05"]
[EventType "swiss"]
[EventRounds "9"]
[EventCountry "GER"]
[SourceTitle "playchess.com"]
[Source "ChessBase"]
[SourceQuality "1"]
[TimeControl "40/4500+30:900+30"]

1. e4 {[%emt 0:00:00]} e6 {[%emt 0:00:00]} 2. d4 {[%emt 0:00:00]} d5 {[%emt 0:00:00]} 3. e5 {[%emt 0:00:00]} c5 {[%emt 0:00:00]} 4. Nf3 {[%emt 0:00:00]} Nc6 {[%emt 0:00:00]} 5. c3 {[%emt 0:00:00]} Qb6 {[%emt 0:00:00]} 6. a3 {[%emt 0:00:00]} c4 {[%emt 0:00:00]} 7. Nbd2 {[%emt 0:00:00]} Na5 {[%emt 0:00:00]} 8. Rb1 {[%emt 0:00:00]} Bd7 {[%emt 0:00:00]} 9. g3 {[%emt 0:00:00]} Ne7 {[%emt 0:00:00]} 10. h4 {[%emt 0:00:00]} h6 {[%emt 0:00:00]} 11. h5 {[%emt 0:00:00]} O-O-O {[%emt 0:00:00]} 12. Nh4 {[%emt 0:01:17]} Kb8 {[%emt 0:01:18]} 13. f4 {[%emt 0:06:55]} Nc8 {[%emt 0:05:59]} 14. Bh3 {[%emt 0:02:46]} Be7 {[%emt 0:02:09]} 15. Ng2 {[%emt 0:06:01]} f6 {[%emt 0:20:37]} 16. O-O {[%emt 0:05:42]} Qc7 {[%emt 0:11:49]} 17. Nf3 {[%emt 0:05:50]} Nb3 {[%emt 0:05:25]} 18. Be3 {[%emt 0:06:43]} Nb6 {[%emt 0:02:06]} 19. Ngh4 {[%emt 0:06:49]} Rhe8 {[%emt 0:08:38]} 20. Ng6 {[%emt 0:06:14]} Na4 {[%emt 0:01:59]} 21. Nxe7 {[%emt 0:04:25]} Rxe7 {[%emt 0:01:33]} 22. g4 {[%emt 0:06:25]} f5 {[%emt 0:09:13]} 23. gxf5 {[%emt 0:03:18]} exf5 {[%emt 0:00:32]} 24. Nh4 {[%emt 0:01:21]} Rf7 {[%emt 0:01:36]} 25. Kh2 {[%emt 0:04:41]} Be6 {[%emt 0:01:53]} 26. Rg1 {[%emt 0:03:55]} Qd7 {[%emt 0:02:26]} 27. Qc2 {[%emt 0:03:04]} Re8 {[%emt 0:01:14]} 28. Rg2 {[%emt 0:05:12]} Ka8 {[%emt 0:03:55]} 29. Rbg1 {[%emt 0:01:04]} Rc8 {[%emt 0:02:07]} 30. Rg6 {[%emt 0:01:58]} Re8 {[%emt 0:03:47]} 31. R1g2 {[%emt 0:02:55]} 1/2-1/2